[Event "*** Titled Tuesday Blitz"]
[Site "Chess.com"]
[Date "2019.04.02"]
[Round "3"]
[White "KRASAVCHIK2002"]
[Black "martinjogstad99"]
[Result "1-0"]
[WhiteElo "2393"]
[BlackElo "2219"]
[TimeControl "180+2"]
[EndTime "14:36:36 PDT"]
[Termination "KRASAVCHIK2002 won by resignation"]

1. e4 {[%clk 0:03:01.9]} 1... c5 {[%clk 0:03:00.5]} 2. Nf3 {[%clk 0:03:02.7]}
2... e6 {[%clk 0:03:01.6]} 3. d4 {[%clk 0:03:03.6]} 3... cxd4 {[%clk 0:03:03.5]}
4. Nxd4 {[%clk 0:03:05.5]} 4... Nc6 {[%clk 0:03:05]} 5. Nc3 {[%clk 0:03:01.9]}
5... Qc7 {[%clk 0:03:06]} 6. Be3 {[%clk 0:02:39.7]} 6... a6 {[%clk 0:03:05.1]}
7. f4 {[%clk 0:02:36.4]} 7... Bb4 {[%clk 0:03:02.7]} 8. Bd3 {[%clk 0:02:32.3]}
8... Na5 {[%clk 0:02:58]} 9. Ne2 {[%clk 0:02:19.3]} 9... Nc4 {[%clk 0:02:47.7]}
10. Bxc4 {[%clk 0:02:19.4]} 10... Qxc4 {[%clk 0:02:49.6]} 11. Qd4 {[%clk
0:02:12]} 11... Qxd4 {[%clk 0:02:41.9]} 12. Bxd4 {[%clk 0:02:12.9]} 12... Nf6
{[%clk 0:02:42.9]} 13. O-O-O {[%clk 0:02:07.8]} 13... b5 {[%clk 0:02:24.3]} 14.
e5 {[%clk 0:01:39.1]} 14... Ng4 {[%clk 0:02:21.5]} 15. h3 {[%clk 0:01:39.2]}
15... Nh6 {[%clk 0:02:22.6]} 16. g4 {[%clk 0:01:40.2]} 16... Bb7 {[%clk
0:02:23.8]} 17. Rhg1 {[%clk 0:01:36.1]} 17... Rc8 {[%clk 0:02:19.5]} 18. Ng3
{[%clk 0:01:20.4]} 18... O-O {[%clk 0:01:27.4]} 19. f5 {[%clk 0:01:04.5]} 19...
Rfd8 {[%clk 0:01:23.2]} 20. f6 {[%clk 0:00:57.6]} 20... gxf6 {[%clk 0:01:20.2]}
21. exf6 {[%clk 0:00:55.8]} 21... d6 {[%clk 0:01:07]} 22. g5 {[%clk 0:00:55.9]}
22... Nf5 {[%clk 0:01:06.3]} 23. Nxf5 {[%clk 0:00:55.6]} 23... exf5 {[%clk
0:01:08.1]} 24. a3 {[%clk 0:00:41.1]} 24... Bc5 {[%clk 0:01:00]} 25. Rgf1 {[%clk
0:00:23.1]} 25... Bg2 {[%clk 0:01:00.7]} 26. Rxf5 {[%clk 0:00:23.6]} 26... Bxh3
{[%clk 0:00:59.4]} 27. Rf4 {[%clk 0:00:24.7]} 27... Bg2 {[%clk 0:00:51.4]} 28.
Rd2 {[%clk 0:00:17.3]} 28... Bb7 {[%clk 0:00:39.5]} 29. Ne4 {[%clk 0:00:15.6]}
29... Re8 {[%clk 0:00:30.3]} 30. Bxc5 {[%clk 0:00:10.1]} 30... dxc5 {[%clk
0:00:30.9]} 31. Nf2 {[%clk 0:00:04.3]} 31... Re1+ {[%clk 0:00:31.1]} 32. Rd1
{[%clk 0:00:05.4]} 32... Rce8 {[%clk 0:00:28.2]} 33. Ng4 {[%clk 0:00:04.1]}
33... Rxd1+ {[%clk 0:00:11.9]} 34. Kxd1 {[%clk 0:00:04.8]} 34... Kf8 {[%clk
0:00:09.9]} 35. Kd2 {[%clk 0:00:04.4]} 35... Rd8+ {[%clk 0:00:10.1]} 36. Kc3
{[%clk 0:00:05.3]} 36... Re8 {[%clk 0:00:09.9]} 37. Rf5 {[%clk 0:00:05.4]} 37...
Rc8 {[%clk 0:00:08.3]} 38. Ne5 {[%clk 0:00:05.5]} 38... Bd5 {[%clk 0:00:06.3]}
39. Nd7+ {[%clk 0:00:06]} 39... Ke8 {[%clk 0:00:07.6]} 40. Rxd5 {[%clk
0:00:07.3]} 40... b4+ {[%clk 0:00:09.2]} 41. axb4 {[%clk 0:00:08.2]} 41... cxb4+
{[%clk 0:00:10.6]} 42. Kb3 {[%clk 0:00:09.7]} 42... Rxc2 {[%clk 0:00:12.3]} 43.
Kxc2 {[%clk 0:00:10.7]} 1-0

[Event "*** Titled Tuesday Blitz"]
[Site "Chess.com"]
[Date "2019.04.02"]
[Round "3"]
[White "ChessicallyInclined"]
[Black "MatthewG-p4p"]
[Result "0-1"]
[WhiteElo "2529"]
[BlackElo "2663"]
[TimeControl "180+2"]
[EndTime "14:36:37 PDT"]
[Termination "MatthewG-p4p won by resignation"]

1. d4 {[%clk 0:03:01.9]} 1... Nf6 {[%clk 0:02:57.4]} 2. c4 {[%clk 0:03:02.6]}
2... c5 {[%clk 0:02:58.8]} 3. d5 {[%clk 0:03:03.5]} 3... e6 {[%clk 0:03:00.3]}
4. Nc3 {[%clk 0:03:04.2]} 4... exd5 {[%clk 0:03:01.7]} 5. cxd5 {[%clk
0:03:06.1]} 5... d6 {[%clk 0:03:03.3]} 6. e4 {[%clk 0:03:07.7]} 6... g6 {[%clk
0:03:04.9]} 7. Nge2 {[%clk 0:03:07.8]} 7... Bg7 {[%clk 0:03:06]} 8. Ng3 {[%clk
0:03:08.4]} 8... h5 {[%clk 0:03:07.5]} 9. Be2 {[%clk 0:03:08.8]} 9... h4 {[%clk
0:03:08.8]} 10. Nf1 {[%clk 0:03:09.4]} 10... h3 {[%clk 0:03:10.1]} 11. g3 {[%clk
0:03:10.7]} 11... a6 {[%clk 0:03:11.1]} 12. a4 {[%clk 0:03:11.8]} 12... O-O
{[%clk 0:03:12.4]} 13. Bg5 {[%clk 0:03:12.6]} 13... Re8 {[%clk 0:03:12.8]} 14.
Nd2 {[%clk 0:03:13.6]} 14... Nbd7 {[%clk 0:03:13.3]} 15. O-O {[%clk 0:03:13.5]}
15... Rb8 {[%clk 0:03:13.9]} 16. Qc2 {[%clk 0:03:14.5]} 16... Qc7 {[%clk
0:03:14.8]} 17. Bf4 {[%clk 0:03:03.4]} 17... Ne5 {[%clk 0:03:10.4]} 18. Bxe5
{[%clk 0:03:03.8]} 18... Rxe5 {[%clk 0:03:12.3]} 19. Nc4 {[%clk 0:03:04.8]}
19... Re8 {[%clk 0:03:13.3]} 20. a5 {[%clk 0:03:05.8]} 20... Nd7 {[%clk
0:03:13.9]} 21. Bg4 {[%clk 0:02:52.1]} 21... b5 {[%clk 0:03:09.5]} 22. axb6
{[%clk 0:02:51.6]} 22... Nxb6 {[%clk 0:03:10.7]} 23. Bxc8 {[%clk 0:02:52.6]}
23... Nxc4 {[%clk 0:02:34.1]} 24. Bxh3 {[%clk 0:02:50.4]} 24... Rxb2 {[%clk
0:02:32.4]} 25. Qc1 {[%clk 0:02:50.7]} 25... Bd4 {[%clk 0:02:15.9]} 26. Rxa6
{[%clk 0:02:42.8]} 26... Qb7 {[%clk 0:02:10.5]} 27. Ra4 {[%clk 0:02:26.7]} 27...
Nd2 {[%clk 0:02:07]} 28. Nd1 {[%clk 0:02:00.7]} 28... Nf3+ {[%clk 0:01:00.3]}
29. Kg2 {[%clk 0:01:47]} 29... Rb1 {[%clk 0:00:56.8]} 30. Qf4 {[%clk 0:01:37.6]}
30... Ne5 {[%clk 0:00:50.5]} 31. Ne3 {[%clk 0:01:36]} 31... Bxe3 {[%clk
0:00:34.5]} 32. Qxe3 {[%clk 0:01:37.9]} 32... Rxf1 {[%clk 0:00:34.8]} 33. f4
{[%clk 0:00:44.8]} 33... Nd7 {[%clk 0:00:16.8]} 34. e5 {[%clk 0:00:34.5]} 34...
Rb1 {[%clk 0:00:14.6]} 35. Bg4 {[%clk 0:00:30.8]} 35... Qxd5+ {[%clk 0:00:13.2]}
36. Bf3 {[%clk 0:00:31.7]} 36... Rb2+ {[%clk 0:00:14.7]} 37. Kh3 {[%clk
0:00:32.6]} 37... Qd2 {[%clk 0:00:14.9]} 38. Qxd2 {[%clk 0:00:22.8]} 38... Rxd2
{[%clk 0:00:16.8]} 39. Bc6 {[%clk 0:00:24.7]} 39... Rd8 {[%clk 0:00:16.8]} 40.
Ra7 {[%clk 0:00:24.1]} 40... Nf8 {[%clk 0:00:17.9]} 41. exd6 {[%clk 0:00:22.6]}
41... R2xd6 {[%clk 0:00:19.8]} 42. Be4 {[%clk 0:00:23]} 42... c4 {[%clk
0:00:20.9]} 43. Rc7 {[%clk 0:00:22.9]} 43... Rd4 {[%clk 0:00:21.2]} 44. Bc2
{[%clk 0:00:24]} 44... Ne6 {[%clk 0:00:22.5]} 45. Rc6 {[%clk 0:00:24.8]} 45...
Kg7 {[%clk 0:00:23.3]} 46. f5 {[%clk 0:00:25.5]} 46... gxf5 {[%clk 0:00:25.2]}
47. Bxf5 {[%clk 0:00:27.2]} 47... Ng5+ {[%clk 0:00:26.7]} 48. Kg2 {[%clk
0:00:27.1]} 48... Rd2+ {[%clk 0:00:28.6]} 49. Kf1 {[%clk 0:00:28.4]} 49... Rxh2
{[%clk 0:00:29.3]} 50. Bg4 {[%clk 0:00:28.7]} 50... Ra8 {[%clk 0:00:29.5]} 51.
Kg1 {[%clk 0:00:26.9]} 51... Rd2 {[%clk 0:00:30.9]} 0-1

[Event "*** Titled Tuesday Blitz"]
[Site "Chess.com"]
[Date "2019.04.02"]
[Round "3"]
[White "FedaMaster"]
[Black "2nd_life"]
[Result "1/2-1/2"]
[WhiteElo "2607"]
[BlackElo "2451"]
[TimeControl "180+2"]
[EndTime "14:36:45 PDT"]
[Termination "Game drawn - insufficient material"]

1. e4 {[%clk 0:02:57.4]} 1... e5 {[%clk 0:03:00.7]} 2. Nf3 {[%clk 0:02:58]} 2...
Nc6 {[%clk 0:03:02]} 3. Bb5 {[%clk 0:02:58.7]} 3... a6 {[%clk 0:03:02.5]} 4.
Bxc6 {[%clk 0:03:00.2]} 4... dxc6 {[%clk 0:03:03.3]} 5. O-O {[%clk 0:03:02.1]}
5... f6 {[%clk 0:03:03.9]} 6. d4 {[%clk 0:03:02.7]} 6... exd4 {[%clk 0:03:04.6]}
7. Nxd4 {[%clk 0:03:04.3]} 7... c5 {[%clk 0:03:05.8]} 8. Ne2 {[%clk 0:03:05.5]}
8... Qxd1 {[%clk 0:03:06.7]} 9. Rxd1 {[%clk 0:03:07.4]} 9... Bd7 {[%clk
0:03:07.6]} 10. Nbc3 {[%clk 0:03:07.3]} 10... O-O-O {[%clk 0:03:07.7]} 11. Bf4
{[%clk 0:03:08.9]} 11... Ne7 {[%clk 0:03:04.2]} 12. Nd5 {[%clk 0:03:02]} 12...
Nxd5 {[%clk 0:03:01.1]} 13. Rxd5 {[%clk 0:03:03.9]} 13... Be7 {[%clk 0:02:53.8]}
14. Rad1 {[%clk 0:03:02.5]} 14... Be6 {[%clk 0:02:54.5]} 15. Rxd8+ {[%clk
0:03:03.3]} 15... Rxd8 {[%clk 0:02:55.9]} 16. Rxd8+ {[%clk 0:03:04.9]} 16...
Kxd8 {[%clk 0:02:57.3]} 17. a3 {[%clk 0:03:02.6]} 17... b5 {[%clk 0:02:52.3]}
18. f3 {[%clk 0:03:03.6]} 18... b4 {[%clk 0:02:24.6]} 19. Bc1 {[%clk 0:03:03]}
19... Ba2 {[%clk 0:02:17.3]} 20. Kf2 {[%clk 0:03:00]} 20... Bb1 {[%clk
0:02:17.7]} 21. c3 {[%clk 0:03:01.5]} 21... Kd7 {[%clk 0:02:13.3]} 22. Ke3
{[%clk 0:02:59]} 22... a5 {[%clk 0:02:04.1]} 23. g4 {[%clk 0:02:58.2]} 23... Kc6
{[%clk 0:02:03.5]} 24. Nf4 {[%clk 0:02:57.9]} 24... Ba2 {[%clk 0:01:56.1]} 25.
h4 {[%clk 0:02:56.9]} 25... Kb5 {[%clk 0:01:39.3]} 26. h5 {[%clk 0:02:17.1]}
26... Bf7 {[%clk 0:01:16.1]} 27. Kd3 {[%clk 0:02:03.6]} 27... c6 {[%clk
0:01:06.1]} 28. h6 {[%clk 0:01:44.5]} 28... g5 {[%clk 0:00:58.6]} 29. Nh3 {[%clk
0:01:39]} 29... Ka4 {[%clk 0:00:41.5]} 30. axb4 {[%clk 0:01:39.4]} 30... cxb4
{[%clk 0:00:41.5]} 31. cxb4 {[%clk 0:01:40.7]} 31... axb4 {[%clk 0:00:40.8]} 32.
e5 {[%clk 0:01:41.2]} 32... Bg6+ {[%clk 0:00:18.1]} 33. Kc4 {[%clk 0:01:41.2]}
33... Bf7+ {[%clk 0:00:16.5]} 34. Kd3 {[%clk 0:01:42.2]} 34... c5 {[%clk
0:00:16.3]} 35. exf6 {[%clk 0:01:40.8]} 35... Bxf6 {[%clk 0:00:14.3]} 36. Nxg5
{[%clk 0:01:41.3]} 36... c4+ {[%clk 0:00:13.7]} 37. Ke4 {[%clk 0:01:39.6]} 37...
Bg6+ {[%clk 0:00:10.5]} 38. Kd5 {[%clk 0:01:40.6]} 38... Kb3 {[%clk 0:00:12]}
39. Ne4 {[%clk 0:01:33.5]} 39... Bxb2 {[%clk 0:00:04.8]} 40. Bxb2 {[%clk
0:01:32.3]} 40... Bxe4+ {[%clk 0:00:04.8]} 41. fxe4 {[%clk 0:01:29.6]} 41...
Kxb2 {[%clk 0:00:05.2]} 42. g5 {[%clk 0:01:24.2]} 42... c3 {[%clk 0:00:04.8]}
43. g6 {[%clk 0:01:25.7]} 43... hxg6 {[%clk 0:00:04.1]} 44. h7 {[%clk
0:01:26.9]} 44... c2 {[%clk 0:00:05.6]} 45. h8=Q+ {[%clk 0:01:28.4]} 45... Kb1
{[%clk 0:00:06.9]} 46. Qd4 {[%clk 0:01:19.1]} 46... b3 {[%clk 0:00:05.7]} 47.
Qd3 {[%clk 0:01:13.5]} 47... Kb2 {[%clk 0:00:06.8]} 48. Qd2 {[%clk 0:01:09.3]}
48... Kb1 {[%clk 0:00:08]} 49. Kc4 {[%clk 0:01:07]} 49... c1=Q+ {[%clk
0:00:04.8]} 50. Qxc1+ {[%clk 0:01:07.8]} 50... Kxc1 {[%clk 0:00:06.7]} 51. Kxb3
{[%clk 0:01:09.4]} 51... g5 {[%clk 0:00:08.3]} 52. e5 {[%clk 0:01:11]} 52... g4
{[%clk 0:00:09.8]} 53. e6 {[%clk 0:01:12.6]} 53... g3 {[%clk 0:00:11.3]} 54. e7
{[%clk 0:01:14.5]} 54... g2 {[%clk 0:00:12.7]} 55. e8=Q {[%clk 0:01:16.4]} 55...
g1=Q {[%clk 0:00:14.1]} 56. Qc8+ {[%clk 0:01:11.7]} 56... Kd1 {[%clk 0:00:15]}
57. Qc2+ {[%clk 0:01:08.7]} 57... Ke1 {[%clk 0:00:15.8]} 58. Qc1+ {[%clk
0:01:09.8]} 58... Kf2 {[%clk 0:00:16.9]} 59. Qc5+ {[%clk 0:01:10.4]} 59... Kf1
{[%clk 0:00:17.8]} 60. Qxg1+ {[%clk 0:01:11.3]} 60... Kxg1 {[%clk 0:00:18.9]}
1/2-1/2

[Event "*** Titled Tuesday Blitz"]
[Site "Chess.com"]
[Date "2019.04.02"]
[Round "3"]
[White "Keures"]
[Black "tteshan"]
[Result "1/2-1/2"]
[WhiteElo "2167"]
[BlackElo "2211"]
[TimeControl "180+2"]
[EndTime "14:36:49 PDT"]
[Termination "Game drawn by repetition"]

1. d4 {[%clk 0:03:00.4]} 1... d5 {[%clk 0:03:00.9]} 2. e3 {[%clk 0:03:00.9]}
2... Nf6 {[%clk 0:03:00.5]} 3. Bd3 {[%clk 0:03:02.2]} 3... e6 {[%clk 0:03:00.6]}
4. f4 {[%clk 0:03:02.3]} 4... c5 {[%clk 0:03:01.8]} 5. c3 {[%clk 0:03:03.3]}
5... Nc6 {[%clk 0:03:01.4]} 6. Nd2 {[%clk 0:03:03.2]} 6... Bd6 {[%clk
0:02:59.6]} 7. Ngf3 {[%clk 0:03:04.3]} 7... O-O {[%clk 0:02:54.4]} 8. Ne5 {[%clk
0:03:03.1]} 8... Nd7 {[%clk 0:02:38]} 9. O-O {[%clk 0:03:01.9]} 9... f6 {[%clk
0:02:31.3]} 10. Qh5 {[%clk 0:02:36.9]} 10... f5 {[%clk 0:02:31.4]} 11. Kh1
{[%clk 0:02:27.9]} 11... Nf6 {[%clk 0:02:29.4]} 12. Qh4 {[%clk 0:02:25.7]} 12...
cxd4 {[%clk 0:02:28.3]} 13. exd4 {[%clk 0:02:26]} 13... Ne4 {[%clk 0:02:27.3]}
14. Qxd8 {[%clk 0:02:25.3]} 14... Nxd8 {[%clk 0:02:24.7]} 15. Ndf3 {[%clk
0:02:25]} 15... b6 {[%clk 0:02:13.6]} 16. Be3 {[%clk 0:02:21.3]} 16... a5 {[%clk
0:02:12.4]} 17. h3 {[%clk 0:02:05.3]} 17... Ng3+ {[%clk 0:02:07.3]} 18. Kh2
{[%clk 0:02:05.9]} 18... Nxf1+ {[%clk 0:02:09.2]} 19. Rxf1 {[%clk 0:02:06.8]}
19... Bc7 {[%clk 0:02:00.6]} 20. g4 {[%clk 0:01:59.7]} 20... Ba6 {[%clk
0:01:58.9]} 21. Bxa6 {[%clk 0:01:48.2]} 21... Rxa6 {[%clk 0:02:00.8]} 22. a4
{[%clk 0:01:40.4]} 22... Ra8 {[%clk 0:01:49.3]} 23. Kg3 {[%clk 0:01:35.9]} 23...
Nf7 {[%clk 0:01:44.5]} 24. Nc6 {[%clk 0:01:31.4]} 24... Nd6 {[%clk 0:01:43.1]}
25. Nfe5 {[%clk 0:01:23.5]} 25... Ne4+ {[%clk 0:01:41.7]} 26. Kg2 {[%clk
0:01:14.2]} 26... Bxe5 {[%clk 0:01:42.8]} 27. Nxe5 {[%clk 0:01:10.4]} 27... fxg4
{[%clk 0:01:39.2]} 28. hxg4 {[%clk 0:01:10.2]} 28... Ra7 {[%clk 0:01:32]} 29. f5
{[%clk 0:01:05.8]} 29... exf5 {[%clk 0:01:21.9]} 30. gxf5 {[%clk 0:01:07.7]}
30... Rb7 {[%clk 0:01:19.7]} 31. c4 {[%clk 0:00:36.9]} 31... dxc4 {[%clk
0:01:15.6]} 32. Nxc4 {[%clk 0:00:38.8]} 32... Rbf7 {[%clk 0:01:10.1]} 33. Rf4
{[%clk 0:00:34.9]} 33... Nf6 {[%clk 0:00:54.8]} 34. Nxb6 {[%clk 0:00:30.7]}
34... Re8 {[%clk 0:00:47.4]} 35. Kf2 {[%clk 0:00:27.1]} 35... Rb7 {[%clk
0:00:43.5]} 36. d5 {[%clk 0:00:27]} 36... Rxe3 {[%clk 0:00:41.6]} 37. Kxe3
{[%clk 0:00:27.8]} 37... Rxb6 {[%clk 0:00:42.9]} 38. Rd4 {[%clk 0:00:26.1]}
38... Rxb2 {[%clk 0:00:40.5]} 39. d6 {[%clk 0:00:27]} 39... Rb7 {[%clk
0:00:41.1]} 40. Kf4 {[%clk 0:00:25.1]} 40... Kf7 {[%clk 0:00:40.4]} 41. Ke5
{[%clk 0:00:26.1]} 41... Nd7+ {[%clk 0:00:38.8]} 42. Kd5 {[%clk 0:00:26.8]}
42... Rb6 {[%clk 0:00:30.4]} 43. Rc4 {[%clk 0:00:25.1]} 43... h5 {[%clk
0:00:23.8]} 44. Rc7 {[%clk 0:00:24.1]} 44... Ke8 {[%clk 0:00:24.7]} 45. Rc8+
{[%clk 0:00:25]} 45... Kf7 {[%clk 0:00:23.4]} 46. Rc7 {[%clk 0:00:26.3]} 46...
Ke8 {[%clk 0:00:22.3]} 47. Rc8+ {[%clk 0:00:26.9]} 47... Kf7 {[%clk 0:00:23.5]}
48. Rc7 {[%clk 0:00:28.1]} 1/2-1/2

[Event "*** Titled Tuesday Blitz"]
[Site "Chess.com"]
[Date "2019.04.02"]
[Round "3"]
[White "pheonixking2000"]
[Black "Fandorine"]
[Result "1-0"]
[WhiteElo "2778"]
[BlackElo "2848"]
[TimeControl "180+2"]
[EndTime "14:36:53 PDT"]
[Termination "pheonixking2000 won by resignation"]

1. d4 {[%clk 0:02:40.5]} 1... Nf6 {[%clk 0:03:00.8]} 2. Nf3 {[%clk 0:02:41.2]}
2... g6 {[%clk 0:03:02]} 3. Nbd2 {[%clk 0:02:40.3]} 3... Bg7 {[%clk 0:03:02.8]}
4. e4 {[%clk 0:02:40.9]} 4... d6 {[%clk 0:03:03.5]} 5. Bb5+ {[%clk 0:02:41.3]}
5... Bd7 {[%clk 0:02:47.5]} 6. Bd3 {[%clk 0:02:37.8]} 6... O-O {[%clk
0:02:47.8]} 7. O-O {[%clk 0:02:36.9]} 7... Nc6 {[%clk 0:02:47.7]} 8. Nc4 {[%clk
0:02:29.6]} 8... Bg4 {[%clk 0:02:37.7]} 9. c3 {[%clk 0:02:29.1]} 9... Nd7 {[%clk
0:02:37]} 10. Ne3 {[%clk 0:02:20.7]} 10... Bxf3 {[%clk 0:02:37.7]} 11. Qxf3
{[%clk 0:02:22.6]} 11... e5 {[%clk 0:02:39.3]} 12. d5 {[%clk 0:02:22.3]} 12...
Ne7 {[%clk 0:02:40.8]} 13. c4 {[%clk 0:02:23.4]} 13... a5 {[%clk 0:02:41.3]} 14.
b3 {[%clk 0:02:18.4]} 14... Kh8 {[%clk 0:02:42]} 15. Bb2 {[%clk 0:02:12.5]}
15... Nc5 {[%clk 0:02:29.2]} 16. Bc2 {[%clk 0:02:13.1]} 16... f5 {[%clk
0:01:55.6]} 17. exf5 {[%clk 0:02:12.5]} 17... Nxf5 {[%clk 0:01:20.8]} 18. Nxf5
{[%clk 0:02:12.3]} 18... gxf5 {[%clk 0:01:20.3]} 19. Bxf5 {[%clk 0:02:09.8]}
19... Qg5 {[%clk 0:01:21.2]} 20. g4 {[%clk 0:02:11]} 20... e4 {[%clk 0:01:22.7]}
21. Bxg7+ {[%clk 0:02:08.6]} 21... Qxg7 {[%clk 0:01:23]} 22. Qg3 {[%clk
0:02:06.6]} 22... Rxf5 {[%clk 0:01:00.1]} 23. gxf5 {[%clk 0:02:07]} 23... Qf6
{[%clk 0:01:01.5]} 24. Qf4 {[%clk 0:01:58.8]} 24... Nd3 {[%clk 0:00:54.9]} 25.
Qe3 {[%clk 0:01:43.8]} 25... Rg8+ {[%clk 0:00:50.8]} 26. Kh1 {[%clk 0:01:45]}
26... Qxf5 {[%clk 0:00:51]} 27. f4 {[%clk 0:01:40.2]} 27... Rg6 {[%clk
0:00:22.3]} 28. Rad1 {[%clk 0:01:30.2]} 28... Kg7 {[%clk 0:00:19.3]} 29. Rg1
{[%clk 0:01:24.1]} 29... Kf7 {[%clk 0:00:15]} 30. Rxg6 {[%clk 0:01:17.9]} 30...
hxg6 {[%clk 0:00:16.9]} 31. Rg1 {[%clk 0:01:09.7]} 31... Qh5 {[%clk 0:00:16.3]}
32. Qg3 {[%clk 0:00:58.4]} 32... b6 {[%clk 0:00:10.9]} 33. Qg2 {[%clk
0:00:41.3]} 33... e3 {[%clk 0:00:04.7]} 34. Qg3 {[%clk 0:00:32.1]} 34... Nf2+
{[%clk 0:00:04]} 35. Kg2 {[%clk 0:00:33.6]} 35... Qe2 {[%clk 0:00:05.2]} 36. Qf3
{[%clk 0:00:30.9]} 36... Qc2 {[%clk 0:00:04.8]} 37. f5 {[%clk 0:00:26.4]} 37...
gxf5 {[%clk 0:00:03.5]} 38. Qh5+ {[%clk 0:00:23.6]} 38... Kf6 {[%clk 0:00:04.7]}
39. Qh6+ {[%clk 0:00:24.1]} 39... Ke5 {[%clk 0:00:06]} 40. Qxe3+ {[%clk
0:00:23.6]} 40... Ne4+ {[%clk 0:00:07.4]} 41. Kh1 {[%clk 0:00:22.9]} 41... f4
{[%clk 0:00:08.9]} 42. Rg5+ {[%clk 0:00:19.6]} 42... Kf6 {[%clk 0:00:07.7]} 43.
Qxf4+ {[%clk 0:00:21]} 1-0

[Event "*** Titled Tuesday Blitz"]
[Site "Chess.com"]
[Date "2019.04.02"]
[Round "3"]
[White "OparinGrigoriy"]
[Black "SergioGarciaFuentes"]
[Result "1-0"]
[WhiteElo "2979"]
[BlackElo "2051"]
[TimeControl "180+2"]
[EndTime "14:36:56 PDT"]
[Termination "OparinGrigoriy won by resignation"]

1. g3 {[%clk 0:02:40.3]} 1... d5 {[%clk 0:02:51.5]} 2. Bg2 {[%clk 0:02:42.1]}
2... Nf6 {[%clk 0:02:53]} 3. Nf3 {[%clk 0:02:43.1]} 3... g6 {[%clk 0:02:53.3]}
4. O-O {[%clk 0:02:44.5]} 4... Bg7 {[%clk 0:02:54.5]} 5. c4 {[%clk 0:02:46.2]}
5... c6 {[%clk 0:02:54.8]} 6. b3 {[%clk 0:02:47.1]} 6... O-O {[%clk 0:02:43.1]}
7. Bb2 {[%clk 0:02:47.3]} 7... Re8 {[%clk 0:02:43.9]} 8. d3 {[%clk 0:02:44.7]}
8... Nbd7 {[%clk 0:02:28]} 9. Nc3 {[%clk 0:02:38.4]} 9... a6 {[%clk 0:02:24.7]}
10. Rc1 {[%clk 0:02:38.5]} 10... e5 {[%clk 0:02:13.4]} 11. cxd5 {[%clk
0:02:32.2]} 11... cxd5 {[%clk 0:02:00.7]} 12. e3 {[%clk 0:02:32.2]} 12... e4
{[%clk 0:01:19.4]} 13. dxe4 {[%clk 0:02:29.9]} 13... dxe4 {[%clk 0:01:19.4]} 14.
Ng5 {[%clk 0:02:29.7]} 14... Nc5 {[%clk 0:01:14.9]} 15. Ba1 {[%clk 0:02:08.7]}
15... Bf5 {[%clk 0:01:08.7]} 16. Rc2 {[%clk 0:01:55.6]} 16... h6 {[%clk
0:01:06]} 17. b4 {[%clk 0:01:54]} 17... Nd3 {[%clk 0:00:46.8]} 18. Ngxe4 {[%clk
0:01:53.7]} 18... Nxb4 {[%clk 0:00:42.1]} 19. Rd2 {[%clk 0:01:52.1]} 19... Qc7
{[%clk 0:00:28.1]} 20. Nxf6+ {[%clk 0:01:44.6]} 20... Bxf6 {[%clk 0:00:27.8]}
21. Nb5 {[%clk 0:01:45]} 21... Qb6 {[%clk 0:00:18.6]} 22. Nd6 {[%clk 0:01:40.4]}
22... Bxa1 {[%clk 0:00:13.8]} 23. Qxa1 {[%clk 0:01:41.2]} 23... Red8 {[%clk
0:00:13.7]} 24. Nxf5 {[%clk 0:01:41.2]} 24... gxf5 {[%clk 0:00:12.2]} 25. Rb2
{[%clk 0:01:42.5]} 25... Qd6 {[%clk 0:00:11.5]} 26. Qb1 {[%clk 0:01:42.9]} 26...
Nd3 {[%clk 0:00:07.8]} 27. Rxb7 {[%clk 0:01:43.4]} 27... Rab8 {[%clk 0:00:09.3]}
28. h4 {[%clk 0:01:40.3]} 28... Rxb7 {[%clk 0:00:07.7]} 29. Qxb7 {[%clk
0:01:40.4]} 29... Nc5 {[%clk 0:00:08.6]} 30. Qf3 {[%clk 0:01:40.1]} 30... Qe5
{[%clk 0:00:08.6]} 31. Rc1 {[%clk 0:01:40.8]} 31... Ne4 {[%clk 0:00:09.3]} 32.
Qf4 {[%clk 0:01:38.7]} 32... Qxf4 {[%clk 0:00:08.5]} 33. gxf4 {[%clk 0:01:40.2]}
33... Rd2 {[%clk 0:00:10.2]} 34. Bxe4 {[%clk 0:01:30.5]} 34... fxe4 {[%clk
0:00:09.9]} 35. a4 {[%clk 0:01:32.1]} 35... Ra2 {[%clk 0:00:10.6]} 36. Rc4
{[%clk 0:01:33.1]} 36... f5 {[%clk 0:00:12.1]} 37. h5 {[%clk 0:01:32.8]} 37...
Kf7 {[%clk 0:00:12.8]} 38. Rc7+ {[%clk 0:01:33.5]} 38... Ke8 {[%clk 0:00:12.4]}
39. Rc5 {[%clk 0:01:32.7]} 39... Rxa4 {[%clk 0:00:12.3]} 40. Rxf5 {[%clk
0:01:34.5]} 40... Ra1+ {[%clk 0:00:13.8]} 41. Kg2 {[%clk 0:01:35.4]} 41... a5
{[%clk 0:00:12.8]} 42. Re5+ {[%clk 0:01:36.2]} 42... Kf7 {[%clk 0:00:14.1]} 43.
Rxe4 {[%clk 0:01:38.1]} 43... a4 {[%clk 0:00:15.7]} 44. Re5 {[%clk 0:01:38.6]}
44... a3 {[%clk 0:00:17]} 45. Ra5 {[%clk 0:01:39.9]} 45... a2 {[%clk 0:00:15.8]}
46. Kf3 {[%clk 0:01:39.3]} 46... Ke7 {[%clk 0:00:15.7]} 47. Ke4 {[%clk
0:01:39.3]} 47... Kf7 {[%clk 0:00:16.2]} 48. f5 {[%clk 0:01:39.8]} 48... Rh1
{[%clk 0:00:12.8]} 49. Rxa2 {[%clk 0:01:39.9]} 49... Rxh5 {[%clk 0:00:14.3]} 50.
Ke5 {[%clk 0:01:38.5]} 50... Rh2 {[%clk 0:00:13.7]} 51. Ra7+ {[%clk 0:01:38.3]}
51... Ke8 {[%clk 0:00:15]} 52. f4 {[%clk 0:01:40.2]} 52... Rb2 {[%clk
0:00:14.9]} 53. f6 {[%clk 0:01:37.9]} 53... Rb5+ {[%clk 0:00:14.5]} 54. Ke6
{[%clk 0:01:38.2]} 54... Rb6+ {[%clk 0:00:15.8]} 55. Kf5 {[%clk 0:01:39.4]}
55... h5 {[%clk 0:00:15.8]} 56. e4 {[%clk 0:01:40.2]} 56... h4 {[%clk
0:00:16.8]} 57. e5 {[%clk 0:01:41.1]} 57... h3 {[%clk 0:00:18]} 58. Rh7 {[%clk
0:01:40.6]} 58... h2 {[%clk 0:00:14.8]} 59. Rxh2 {[%clk 0:01:38.5]} 1-0